[Event "December 5 Early 2023"]
[Site "https://www.chess.com"]
[Date "2023.12.05"]
[Round "2"]
[White "Szente Varga, Fruzsina"]
[Black "Rietze, Clemens, Dr."]
[Result "0-1"]
[Board "184"]
[TimeControl "180+1"]
[WhiteFideId "712264"]
[BlackFideId "24620351"]
[WhiteElo "2295"]
[BlackElo "2513"]
[WhiteTeam "HUN"]
[BlackTeam "GER"]
[WhiteClock "0:00:11"]
[BlackClock "0:00:19"]

1. e4 {[%clk 0:03:00]}  c6 {[%clk 0:02:59]} 2. d4 {[%clk 0:03:00]}  d5 {[%clk 0:02:59]} 3. exd5 {[%clk 0:03:00]}  cxd5 {[%clk 0:03:00]} 4. Bd3 {[%clk 0:02:59]}  Nc6 {[%clk 0:03:00]} 5. c3 {[%clk 0:03:00]}  Qc7 {[%clk 0:03:00]} 6. Ne2 {[%clk 0:02:51]}  Bg4 {[%clk 0:03:00]} 7. Bf4 {[%clk 0:02:49]}  Qxf4 {[%clk 0:02:44]} 8. Nxf4 {[%clk 0:02:48]}  Bxd1 {[%clk 0:02:45]} 9. Kxd1 {[%clk 0:02:49]}  e6 {[%clk 0:02:45]} 10. Nd2 {[%clk 0:02:35]}  Bd6 {[%clk 0:02:43]} 11. Ne2 {[%clk 0:02:34]}  Nge7 {[%clk 0:02:24]} 12. b4 {[%clk 0:02:11]}  O-O {[%clk 0:02:23]} 13. a4 {[%clk 0:02:02]}  Rae8 {[%clk 0:02:23]} 14. f4 {[%clk 0:01:59]}  f6 {[%clk 0:02:21]} 15. Kc2 {[%clk 0:01:55]}  e5 {[%clk 0:02:09]} 16. fxe5 {[%clk 0:01:50]}  fxe5 {[%clk 0:02:09]} 17. dxe5 {[%clk 0:01:43]}  Nxe5 {[%clk 0:02:07]} 18. Rhf1 {[%clk 0:01:43]}  Ng4 {[%clk 0:02:01]} 19. Rxf8+ {[%clk 0:01:35]}  Rxf8 {[%clk 0:02:02]} 20. Nf3 {[%clk 0:01:35]}  Ne3+ {[%clk 0:01:58]} 21. Kd2 {[%clk 0:01:33]}  Nxg2 {[%clk 0:01:57]} 22. Ned4 {[%clk 0:01:27]}  Nf4 {[%clk 0:01:44]} 23. Bc2 {[%clk 0:01:23]}  Neg6 {[%clk 0:01:36]} 24. Re1 {[%clk 0:01:16]}  a6 {[%clk 0:01:30]} 25. Bb3 {[%clk 0:01:06]}  Rd8 {[%clk 0:01:02]} 26. Ne6 {[%clk 0:01:03]}  Rd7 {[%clk 0:00:55]} 27. Nfd4 {[%clk 0:00:49]}  h6 {[%clk 0:00:42]} 28. b5 {[%clk 0:00:42]}  Kf7 {[%clk 0:00:36]} 29. Rf1 {[%clk 0:00:35]}  Kg8 {[%clk 0:00:31]} 30. Nxf4 {[%clk 0:00:30]}  Nxf4 {[%clk 0:00:31]} 31. Re1 {[%clk 0:00:25]}  g5 {[%clk 0:00:30]} 32. Ne6 {[%clk 0:00:25]}  Kf7 {[%clk 0:00:26]} 33. Nxf4 {[%clk 0:00:22]}  Bxf4+ {[%clk 0:00:27]} 34. Kd3 {[%clk 0:00:21]}  axb5 {[%clk 0:00:26]} 35. axb5 {[%clk 0:00:21]}  Bxh2 {[%clk 0:00:26]} 36. Rh1 {[%clk 0:00:21]}  Be5 {[%clk 0:00:24]} 37. Rxh6 {[%clk 0:00:21]}  Kg7 {[%clk 0:00:24]} 38. Rh1 {[%clk 0:00:20]}  Kg6 {[%clk 0:00:23]} 39. Rg1 {[%clk 0:00:20]}  Kf5 {[%clk 0:00:22]} 40. Bc2 {[%clk 0:00:16]}  g4 {[%clk 0:00:20]} 41. c4 {[%clk 0:00:14]}  dxc4+ {[%clk 0:00:19]} 42. Kxc4+ {[%clk 0:00:14]}  Kg5 {[%clk 0:00:19]} 43. Kc5 {[%clk 0:00:14]}  Rc7+ {[%clk 0:00:19]} 44. Kd5 {[%clk 0:00:15]}  Rxc2 {[%clk 0:00:20]} 45. Kxe5 {[%clk 0:00:16]}  Rb2 {[%clk 0:00:20]} 46. Kd6 {[%clk 0:00:11]}  Rxb5 {[%clk 0:00:19]} 0-1

[Event "December 5 Early 2023"]
[Site "https://www.chess.com"]
[Date "2023.12.05"]
[Round "2"]
[White "Tikhonov, Viacheslav"]
[Black "yaguigor"]
[Result "0-1"]
[Board "187"]
[TimeControl "180+1"]
[WhiteFideId "44196407"]
[WhiteElo "2508"]
[BlackElo "2287"]
[WhiteTeam "RUS"]
[WhiteClock "0:00:05"]
[BlackClock "0:00:23"]

1. e4 {[%clk 0:03:00]}  c5 {[%clk 0:02:58]} 2. Nf3 {[%clk 0:03:00]}  e6 {[%clk 0:02:54]} 3. b3 {[%clk 0:03:00]}  a6 {[%clk 0:02:52]} 4. Bb2 {[%clk 0:03:00]}  Nc6 {[%clk 0:02:53]} 5. g3 {[%clk 0:03:00]}  Nf6 {[%clk 0:02:51]} 6. e5 {[%clk 0:03:00]}  Nd5 {[%clk 0:02:48]} 7. Bg2 {[%clk 0:03:01]}  Be7 {[%clk 0:02:46]} 8. O-O {[%clk 0:03:01]}  O-O {[%clk 0:02:46]} 9. c4 {[%clk 0:03:00]}  Nc7 {[%clk 0:02:42]} 10. Re1 {[%clk 0:02:59]}  f6 {[%clk 0:02:30]} 11. d4 {[%clk 0:02:56]}  cxd4 {[%clk 0:02:29]} 12. exf6 {[%clk 0:02:39]}  Bxf6 {[%clk 0:02:28]} 13. Nxd4 {[%clk 0:02:38]}  Qe8 {[%clk 0:02:14]} 14. Qd2 {[%clk 0:02:32]}  Qh5 {[%clk 0:02:01]} 15. Nxc6 {[%clk 0:02:22]}  bxc6 {[%clk 0:02:00]} 16. Bxf6 {[%clk 0:01:54]}  gxf6 {[%clk 0:01:57]} 17. Qd6 {[%clk 0:01:44]}  Ne8 {[%clk 0:01:55]} 18. Qe7 {[%clk 0:01:29]}  Qf7 {[%clk 0:01:49]} 19. Qxf7+ {[%clk 0:01:23]}  Kxf7 {[%clk 0:01:48]} 20. c5 {[%clk 0:01:24]}  e5 {[%clk 0:01:46]} 21. Nc3 {[%clk 0:01:23]}  Nc7 {[%clk 0:01:44]} 22. Ne4 {[%clk 0:01:19]}  Ne6 {[%clk 0:01:44]} 23. Rad1 {[%clk 0:01:07]}  Rd8 {[%clk 0:01:41]} 24. Bh3 {[%clk 0:01:05]}  Nd4 {[%clk 0:01:40]} 25. Nd6+ {[%clk 0:01:04]}  Ke7 {[%clk 0:01:39]} 26. Nf5+ {[%clk 0:01:03]}  Nxf5 {[%clk 0:01:39]} 27. Bxf5 {[%clk 0:01:03]}  d5 {[%clk 0:01:32]} 28. cxd6+ {[%clk 0:00:58]}  Rxd6 {[%clk 0:01:31]} 29. Rxd6 {[%clk 0:00:58]}  Kxd6 {[%clk 0:01:31]} 30. Rd1+ {[%clk 0:00:58]}  Ke7 {[%clk 0:01:29]} 31. Bxh7 {[%clk 0:00:58]}  f5 {[%clk 0:01:29]} 32. Bg8 {[%clk 0:00:41]}  Be6 {[%clk 0:01:28]} 33. Bxe6 {[%clk 0:00:41]}  Kxe6 {[%clk 0:01:28]} 34. h4 {[%clk 0:00:40]}  a5 {[%clk 0:01:28]} 35. Rc1 {[%clk 0:00:36]}  Kd5 {[%clk 0:01:26]} 36. Rc4 {[%clk 0:00:35]}  c5 {[%clk 0:01:22]} 37. Kf1 {[%clk 0:00:34]}  Ra7 {[%clk 0:01:11]} 38. Ke2 {[%clk 0:00:34]}  Ra6 {[%clk 0:01:10]} 39. Ke3 {[%clk 0:00:33]}  Ra7 {[%clk 0:01:08]} 40. Ra4 {[%clk 0:00:29]}  Kc6 {[%clk 0:01:06]} 41. g4 {[%clk 0:00:21]}  fxg4 {[%clk 0:01:02]} 42. Rxg4 {[%clk 0:00:22]}  Kd5 {[%clk 0:01:02]} 43. Kd3 {[%clk 0:00:20]}  Rf7 {[%clk 0:00:59]} 44. Ke3 {[%clk 0:00:20]}  Rh7 {[%clk 0:00:54]} 45. Ra4 {[%clk 0:00:20]}  Rh6 {[%clk 0:00:53]} 46. Rg4 {[%clk 0:00:13]}  Rh5 {[%clk 0:00:52]} 47. Kf3 {[%clk 0:00:11]}  Rh7 {[%clk 0:00:50]} 48. Kg3 {[%clk 0:00:12]}  e4 {[%clk 0:00:48]} 49. Kf4 {[%clk 0:00:12]}  Rf7+ {[%clk 0:00:46]} 50. Ke3 {[%clk 0:00:13]}  Rf3+ {[%clk 0:00:46]} 51. Ke2 {[%clk 0:00:13]}  Rh3 {[%clk 0:00:47]} 52. Kf1 {[%clk 0:00:06]}  e3 {[%clk 0:00:41]} 53. fxe3 {[%clk 0:00:03]}  Rxe3 {[%clk 0:00:41]} 54. Rg2 {[%clk 0:00:03]}  Rh3 {[%clk 0:00:40]} 55. Rg4 {[%clk 0:00:02]}  Rh2 {[%clk 0:00:40]} 56. a4 {[%clk 0:00:01]}  Rh3 {[%clk 0:00:40]} 57. Kg2 {[%clk 0:00:01]}  Rxb3 {[%clk 0:00:40]} 58. h5 {[%clk 0:00:02]}  c4 {[%clk 0:00:39]} 59. h6 {[%clk 0:00:02]}  Rb8 {[%clk 0:00:38]} 60. Rg7 {[%clk 0:00:02]}  Rh8 {[%clk 0:00:37]} 61. h7 {[%clk 0:00:02]}  Kd4 {[%clk 0:00:35]} 62. Kf3 {[%clk 0:00:03]}  Kc3 {[%clk 0:00:35]} 63. Rb7 {[%clk 0:00:02]}  Kd3 {[%clk 0:00:34]} 64. Rd7+ {[%clk 0:00:02]}  Kc2 {[%clk 0:00:35]} 65. Ke4 {[%clk 0:00:03]}  c3 {[%clk 0:00:33]} 66. Kd4 {[%clk 0:00:03]}  Kd2 {[%clk 0:00:33]} 67. Kc4+ {[%clk 0:00:02]}  Kc2 {[%clk 0:00:33]} 68. Kb5 {[%clk 0:00:02]}  Kb3 {[%clk 0:00:30]} 69. Rc7 {[%clk 0:00:02]}  c2 {[%clk 0:00:28]} 70. Kxa5 {[%clk 0:00:03]}  Rxh7 {[%clk 0:00:28]} 71. Rxh7 {[%clk 0:00:02]}  c1=Q {[%clk 0:00:27]} 72. Rb7+ {[%clk 0:00:03]}  Ka3 {[%clk 0:00:26]} 73. Rb5 {[%clk 0:00:02]}  Qc6 {[%clk 0:00:25]} 74. Rb1 {[%clk 0:00:01]}  Qxa4+ {[%clk 0:00:25]} 75. Kb6 {[%clk 0:00:01]}  Qd4+ {[%clk 0:00:25]} 76. Kc7 {[%clk 0:00:01]}  Qe5+ {[%clk 0:00:25]} 77. Kb6 {[%clk 0:00:01]}  Qe3+ {[%clk 0:00:24]} 78. Kb7 {[%clk 0:00:01]}  Qe4+ {[%clk 0:00:24]} 79. Ka6 {[%clk 0:00:02]}  Qxb1 {[%clk 0:00:24]} 80. Ka5 {[%clk 0:00:02]}  Qf5+ {[%clk 0:00:23]} 81. Ka6 {[%clk 0:00:02]}  Kb4 {[%clk 0:00:23]} 82. Ka7 {[%clk 0:00:03]}  Qe6 {[%clk 0:00:24]} 83. Ka8 {[%clk 0:00:04]}  Kc5 {[%clk 0:00:24]} 84. Kb8 {[%clk 0:00:05]}  Kb6 {[%clk 0:00:23]} 85. Ka8 {[%clk 0:00:05]}  Qg8# {[%clk 0:00:23]} 0-1

[Event "December 5 Early 2023"]
[Site "https://www.chess.com"]
[Date "2023.12.05"]
[Round "2"]
[White "Yaniuk, Volodymyr"]
[Black "Colonetti, Fabio"]
[Result "1-0"]
[Board "188"]
[TimeControl "180+1"]
[WhiteFideId "14133083"]
[BlackFideId "897612"]
[WhiteElo "2506"]
[BlackElo "2286"]
[WhiteTeam "UKR"]
[BlackTeam "ITA"]
[WhiteClock "0:00:53"]
[BlackClock "0:00:31"]

1. d4 {[%clk 0:02:55]}  d5 {[%clk 0:02:58]} 2. c4 {[%clk 0:02:54]}  c6 {[%clk 0:02:58]} 3. Nf3 {[%clk 0:02:54]}  Nf6 {[%clk 0:02:57]} 4. e3 {[%clk 0:02:55]}  e6 {[%clk 0:02:57]} 5. b3 {[%clk 0:02:54]}  Nbd7 {[%clk 0:02:55]} 6. Bd3 {[%clk 0:02:52]}  Bd6 {[%clk 0:02:54]} 7. Bb2 {[%clk 0:02:53]}  O-O {[%clk 0:02:54]} 8. O-O {[%clk 0:02:53]}  Qe7 {[%clk 0:02:48]} 9. Ne5 {[%clk 0:02:50]}  Ne4 {[%clk 0:02:36]} 10. f3 {[%clk 0:02:39]}  Nef6 {[%clk 0:02:29]} 11. Qc2 {[%clk 0:02:38]}  c5 {[%clk 0:02:24]} 12. f4 {[%clk 0:02:32]}  dxc4 {[%clk 0:02:13]} 13. bxc4 {[%clk 0:02:26]}  h6 {[%clk 0:01:48]} 14. Nc3 {[%clk 0:02:25]}  b6 {[%clk 0:01:37]} 15. Be4 {[%clk 0:02:09]}  Nxe4 {[%clk 0:01:30]} 16. Qxe4 {[%clk 0:02:10]}  Ba6 {[%clk 0:01:30]} 17. a4 {[%clk 0:01:54]}  Nf6 {[%clk 0:01:27]} 18. Qf3 {[%clk 0:01:53]}  cxd4 {[%clk 0:01:27]} 19. exd4 {[%clk 0:01:54]}  Rac8 {[%clk 0:01:26]} 20. Nb5 {[%clk 0:01:53]}  Bxb5 {[%clk 0:01:23]} 21. axb5 {[%clk 0:01:54]}  Rc7 {[%clk 0:01:14]} 22. Nc6 {[%clk 0:01:52]}  Qd7 {[%clk 0:01:12]} 23. Rad1 {[%clk 0:01:47]}  a6 {[%clk 0:01:11]} 24. d5 {[%clk 0:01:42]}  axb5 {[%clk 0:01:05]} 25. Bxf6 {[%clk 0:01:41]}  gxf6 {[%clk 0:01:06]} 26. Qg4+ {[%clk 0:01:35]}  Kh7 {[%clk 0:01:04]} 27. cxb5 {[%clk 0:01:36]}  exd5 {[%clk 0:01:02]} 28. Qh5 {[%clk 0:01:18]}  Bc5+ {[%clk 0:01:00]} 29. Kh1 {[%clk 0:01:18]}  d4 {[%clk 0:00:57]} 30. Rf3 {[%clk 0:01:16]}  f5 {[%clk 0:00:51]} 31. Re1 {[%clk 0:01:04]}  d3 {[%clk 0:00:48]} 32. Rh3 {[%clk 0:01:03]}  Qd6 {[%clk 0:00:46]} 33. Qxf5+ {[%clk 0:01:03]}  Qg6 {[%clk 0:00:45]} 34. Qxd3 {[%clk 0:00:57]}  Qxd3 {[%clk 0:00:37]} 35. Rxd3 {[%clk 0:00:58]}  Kg6 {[%clk 0:00:37]} 36. g3 {[%clk 0:00:58]}  Ra8 {[%clk 0:00:33]} 37. Re2 {[%clk 0:00:57]}  Ra1+ {[%clk 0:00:33]} 38. Kg2 {[%clk 0:00:55]}  Kf5 {[%clk 0:00:33]} 39. Rd5+ {[%clk 0:00:53]}  Kg4 {[%clk 0:00:31]} 40. h3# {[%clk 0:00:53]} 1-0

[Event "December 5 Early 2023"]
[Site "https://www.chess.com"]
[Date "2023.12.05"]
[Round "2"]
[White "Shubhi Gupta"]
[Black "Eugene, Floryan"]
[Result "0-1"]
[Board "189"]
[TimeControl "180+1"]
[WhiteFideId "25195425"]
[BlackFideId "20694784"]
[WhiteElo "2284"]
[BlackElo "2506"]
[WhiteTeam "IND"]
[BlackTeam "FRA"]
[WhiteClock "0:00:00"]
[BlackClock "0:00:03"]

1. d4 {[%clk 0:03:00]}  f5 {[%clk 0:02:59]} 2. Bg5 {[%clk 0:03:00]}  h6 {[%clk 0:02:59]} 3. Bh4 {[%clk 0:02:58]}  g5 {[%clk 0:02:59]} 4. Bg3 {[%clk 0:02:58]}  Nf6 {[%clk 0:02:58]} 5. e3 {[%clk 0:02:56]}  Bg7 {[%clk 0:02:59]} 6. Nc3 {[%clk 0:02:57]}  O-O {[%clk 0:02:58]} 7. Bc4+ {[%clk 0:02:56]}  e6 {[%clk 0:02:48]} 8. Nf3 {[%clk 0:02:54]}  d6 {[%clk 0:02:39]} 9. Qe2 {[%clk 0:02:45]}  a6 {[%clk 0:02:31]} 10. a4 {[%clk 0:02:44]}  Nc6 {[%clk 0:02:27]} 11. d5 {[%clk 0:02:40]}  exd5 {[%clk 0:02:09]} 12. Nxd5 {[%clk 0:02:40]}  Nxd5 {[%clk 0:02:06]} 13. Bxd5+ {[%clk 0:02:41]}  Kh8 {[%clk 0:02:06]} 14. Bxc6 {[%clk 0:02:37]}  bxc6 {[%clk 0:02:05]} 15. c3 {[%clk 0:02:37]}  c5 {[%clk 0:02:03]} 16. O-O {[%clk 0:02:29]}  Rb8 {[%clk 0:01:55]} 17. h3 {[%clk 0:02:11]}  Qf6 {[%clk 0:01:30]} 18. Rfd1 {[%clk 0:01:54]}  Bb7 {[%clk 0:01:22]} 19. Rac1 {[%clk 0:01:49]}  Rfe8 {[%clk 0:01:19]} 20. Bh2 {[%clk 0:00:50]}  f4 {[%clk 0:01:15]} 21. Nd2 {[%clk 0:00:47]}  Qg6 {[%clk 0:00:55]} 22. Nf1 {[%clk 0:00:37]}  f3 {[%clk 0:00:46]} 23. gxf3 {[%clk 0:00:33]}  Qh5 {[%clk 0:00:46]} 24. Nd2 {[%clk 0:00:30]}  Qxh3 {[%clk 0:00:37]} 25. Qf1 {[%clk 0:00:30]}  Qh5 {[%clk 0:00:35]} 26. b4 {[%clk 0:00:23]}  Bxf3 {[%clk 0:00:33]} 27. Nxf3 {[%clk 0:00:23]}  Qxf3 {[%clk 0:00:33]} 28. bxc5 {[%clk 0:00:24]}  dxc5 {[%clk 0:00:34]} 29. Bxc7 {[%clk 0:00:23]}  Rb2 {[%clk 0:00:32]} 30. Qg2 {[%clk 0:00:23]}  Qf7 {[%clk 0:00:25]} 31. Bg3 {[%clk 0:00:20]}  h5 {[%clk 0:00:21]} 32. Qd5 {[%clk 0:00:18]}  Qf6 {[%clk 0:00:16]} 33. Qd6 {[%clk 0:00:15]}  Rf8 {[%clk 0:00:11]} 34. Qxf6 {[%clk 0:00:13]}  Rxf6 {[%clk 0:00:12]} 35. Rd5 {[%clk 0:00:13]}  h4 {[%clk 0:00:12]} 36. Be5 {[%clk 0:00:13]}  Rfxf2 {[%clk 0:00:12]} 37. Rd8+ {[%clk 0:00:13]}  Kh7 {[%clk 0:00:10]} 38. Rd7 {[%clk 0:00:13]}  Rg2+ {[%clk 0:00:10]} 39. Kh1 {[%clk 0:00:13]}  g4 {[%clk 0:00:08]} 40. Rxg7+ {[%clk 0:00:13]}  Kh6 {[%clk 0:00:08]} 41. Rc7 {[%clk 0:00:12]}  g3 {[%clk 0:00:07]} 42. Rc6+ {[%clk 0:00:12]}  Kg5 {[%clk 0:00:06]} 43. Bf4+ {[%clk 0:00:12]}  Kg4 {[%clk 0:00:05]} 44. Rg6+ {[%clk 0:00:04]}  Kh3 {[%clk 0:00:04]} 45. Bxg3 {[%clk 0:00:04]}  Rxg3 {[%clk 0:00:03]} 46. Rxg3+ {[%clk 0:00:03]}  hxg3 {[%clk 0:00:04]} 47. e4 {[%clk 0:00:03]}  Re2 {[%clk 0:00:04]} 48. Rd1 {[%clk 0:00:02]}  Rxe4 {[%clk 0:00:04]} 49. Kg1 {[%clk 0:00:02]}  Re3 {[%clk 0:00:04]} 50. Rc1 {[%clk 0:00:02]}  Re2 {[%clk 0:00:03]} 51. a5 {[%clk 0:00:02]}  Ra2 {[%clk 0:00:04]} 52. Rd1 {[%clk 0:00:03]}  Rxa5 {[%clk 0:00:04]} 53. Kf1 {[%clk 0:00:00]}  Ra2 {[%clk 0:00:03]} 0-1

[Event "December 5 Early 2023"]
[Site "https://www.chess.com"]
[Date "2023.12.05"]
[Round "2"]
[White "Slade, Theodore"]
[Black "Travkina, Anastasia"]
[Result "1-0"]
[Board "190"]
[TimeControl "180+1"]
[WhiteFideId "426547"]
[BlackFideId "24129151"]
[WhiteElo "2505"]
[BlackElo "2282"]
[WhiteTeam "ENG"]
[BlackTeam "RUS"]
[WhiteClock "0:02:05"]
[BlackClock "0:01:33"]

1. d4 {[%clk 0:03:00]}  Nf6 {[%clk 0:02:58]} 2. c4 {[%clk 0:03:01]}  c5 {[%clk 0:02:58]} 3. d5 {[%clk 0:03:01]}  b5 {[%clk 0:02:57]} 4. cxb5 {[%clk 0:03:02]}  a6 {[%clk 0:02:57]} 5. bxa6 {[%clk 0:03:02]}  g6 {[%clk 0:02:57]} 6. Nc3 {[%clk 0:03:03]}  e6 {[%clk 0:02:55]} 7. e4 {[%clk 0:02:57]}  Bg7 {[%clk 0:02:50]} 8. d6 {[%clk 0:02:48]}  Bxa6 {[%clk 0:02:47]} 9. Bxa6 {[%clk 0:02:39]}  Nxa6 {[%clk 0:02:45]} 10. Nf3 {[%clk 0:02:40]}  O-O {[%clk 0:02:38]} 11. O-O {[%clk 0:02:36]}  Qb8 {[%clk 0:02:36]} 12. e5 {[%clk 0:02:29]}  Nd5 {[%clk 0:02:30]} 13. Nxd5 {[%clk 0:02:29]}  exd5 {[%clk 0:02:31]} 14. Qxd5 {[%clk 0:02:29]}  Rc8 {[%clk 0:02:31]} 15. b3 {[%clk 0:02:20]}  Nb4 {[%clk 0:02:31]} 16. Qd2 {[%clk 0:02:15]}  c4 {[%clk 0:02:22]} 17. bxc4 {[%clk 0:02:08]}  Rxc4 {[%clk 0:01:33]} 18. Rb1 {[%clk 0:02:05]} 1-0

[Event "December 5 Early 2023"]
[Site "https://www.chess.com"]
[Date "2023.12.05"]
[Round "2"]
[White "Shinkarev, M"]
[Black "Llari, Marc"]
[Result "1-0"]
[Board "191"]
[TimeControl "180+1"]
[WhiteFideId "4145348"]
[BlackFideId "651044269"]
[WhiteElo "2504"]
[BlackElo "2282"]
[WhiteTeam "RUS"]
[BlackTeam "FRA"]
[WhiteClock "0:01:04"]
[BlackClock "0:00:52"]

1. c4 {[%clk 0:03:00]}  e6 {[%clk 0:02:59]} 2. d4 {[%clk 0:03:00]}  d5 {[%clk 0:03:00]} 3. Nf3 {[%clk 0:03:00]}  a6 {[%clk 0:02:59]} 4. Bg5 {[%clk 0:02:57]}  Ne7 {[%clk 0:02:53]} 5. cxd5 {[%clk 0:02:55]}  exd5 {[%clk 0:02:54]} 6. Nc3 {[%clk 0:02:54]}  c6 {[%clk 0:02:51]} 7. e3 {[%clk 0:02:53]}  Bg4 {[%clk 0:02:50]} 8. Qb3 {[%clk 0:02:44]}  Qc8 {[%clk 0:02:40]} 9. Ne5 {[%clk 0:02:40]}  Bh5 {[%clk 0:02:37]} 10. Bf4 {[%clk 0:02:39]}  Nd7 {[%clk 0:02:37]} 11. a4 {[%clk 0:02:38]}  Nxe5 {[%clk 0:02:36]} 12. Bxe5 {[%clk 0:02:38]}  Ng6 {[%clk 0:02:36]} 13. Bg3 {[%clk 0:02:38]}  Be7 {[%clk 0:02:37]} 14. a5 {[%clk 0:02:36]}  O-O {[%clk 0:02:37]} 15. Na4 {[%clk 0:02:35]}  Bd8 {[%clk 0:02:37]} 16. Qc3 {[%clk 0:02:30]}  Ne7 {[%clk 0:02:35]} 17. Bd6 {[%clk 0:02:21]}  Re8 {[%clk 0:02:35]} 18. h3 {[%clk 0:02:20]}  Bg6 {[%clk 0:02:34]} 19. Be2 {[%clk 0:02:16]}  Nf5 {[%clk 0:02:34]} 20. Bh2 {[%clk 0:02:15]}  Nh4 {[%clk 0:02:18]} 21. O-O {[%clk 0:02:13]}  Qf5 {[%clk 0:02:05]} 22. Bg4 {[%clk 0:02:05]}  Qe4 {[%clk 0:02:04]} 23. f3 {[%clk 0:01:43]}  Qxe3+ {[%clk 0:02:02]} 24. Qxe3 {[%clk 0:01:44]}  Rxe3 {[%clk 0:02:03]} 25. Nc5 {[%clk 0:01:44]}  b6 {[%clk 0:01:48]} 26. Nb7 {[%clk 0:01:29]}  Bf6 {[%clk 0:01:35]} 27. Rad1 {[%clk 0:01:21]}  Rb8 {[%clk 0:01:07]} 28. Bxb8 {[%clk 0:01:19]}  bxa5 {[%clk 0:01:02]} 29. Bg3 {[%clk 0:01:16]}  Nf5 {[%clk 0:01:02]} 30. Bf2 {[%clk 0:01:15]}  Rb3 {[%clk 0:01:02]} 31. Nxa5 {[%clk 0:01:13]}  Rxb2 {[%clk 0:01:02]} 32. Bxf5 {[%clk 0:01:13]}  Bxf5 {[%clk 0:01:03]} 33. Nxc6 {[%clk 0:01:13]}  h5 {[%clk 0:01:01]} 34. g4 {[%clk 0:01:06]}  hxg4 {[%clk 0:01:01]} 35. hxg4 {[%clk 0:01:07]}  Bd7 {[%clk 0:00:59]} 36. Ne5 {[%clk 0:01:06]}  Bb5 {[%clk 0:00:52]} 37. Rb1 {[%clk 0:01:04]} 1-0

[Event "December 5 Early 2023"]
[Site "https://www.chess.com"]
[Date "2023.12.05"]
[Round "2"]
[White "Obon Temprano, Sergi"]
[Black "Davidson, Kevin"]
[Result "0-1"]
[Board "192"]
[TimeControl "180+1"]
[WhiteFideId "2226545"]
[BlackFideId "2056810"]
[WhiteElo "2274"]
[BlackElo "2503"]
[WhiteTeam "ESP"]
[BlackTeam "USA"]
[WhiteClock "0:00:18"]
[BlackClock "0:01:01"]

1. d4 {[%clk 0:02:59]}  Nf6 {[%clk 0:02:59]} 2. Nf3 {[%clk 0:02:58]}  g6 {[%clk 0:02:59]} 3. c3 {[%clk 0:02:57]}  Bg7 {[%clk 0:02:59]} 4. Bg5 {[%clk 0:02:57]}  d6 {[%clk 0:02:59]} 5. Nbd2 {[%clk 0:02:57]}  h6 {[%clk 0:03:00]} 6. Bh4 {[%clk 0:02:56]}  O-O {[%clk 0:03:00]} 7. e4 {[%clk 0:02:55]}  Nc6 {[%clk 0:02:59]} 8. Bc4 {[%clk 0:02:54]}  e5 {[%clk 0:02:59]} 9. dxe5 {[%clk 0:02:54]}  dxe5 {[%clk 0:02:59]} 10. O-O {[%clk 0:02:52]}  Qe8 {[%clk 0:02:59]} 11. Qe2 {[%clk 0:02:50]}  Nh5 {[%clk 0:02:58]} 12. Bg3 {[%clk 0:02:48]}  Kh8 {[%clk 0:02:42]} 13. Rfe1 {[%clk 0:02:46]}  f5 {[%clk 0:02:27]} 14. exf5 {[%clk 0:02:44]}  gxf5 {[%clk 0:02:27]} 15. Bxe5 {[%clk 0:02:33]}  Nxe5 {[%clk 0:02:22]} 16. Nxe5 {[%clk 0:02:32]}  Nf4 {[%clk 0:02:22]} 17. Qe3 {[%clk 0:02:14]}  Ne6 {[%clk 0:02:08]} 18. Ndf3 {[%clk 0:01:53]}  f4 {[%clk 0:02:04]} 19. Qd3 {[%clk 0:01:44]}  Rf6 {[%clk 0:01:39]} 20. Nd4 {[%clk 0:01:28]}  Nc5 {[%clk 0:01:31]} 21. Qc2 {[%clk 0:01:04]}  Qh5 {[%clk 0:01:16]} 22. b4 {[%clk 0:00:48]}  Ne6 {[%clk 0:01:01]} 23. Bxe6 {[%clk 0:00:31]}  Bxe6 {[%clk 0:01:02]} 24. Nxe6 {[%clk 0:00:24]}  Rxe6 {[%clk 0:01:03]} 25. Qf5 {[%clk 0:00:18]}  Qxf5 {[%clk 0:01:01]} 0-1